{"text_format":"2","workbook":"xlsx","n_sheets":4,"sheets":["Fedlap","Összesítők","Felvonó","Felvonótorony átalakítása"],"not_rendered":{"charts":0,"images":0,"macros":0,"external_links":0,"defined_names":4,"comments":0,"pivot_tables":0},"unopened":[],"bounds":{"document_bytes":16777216,"sheet_cells":100000,"run_cost":"one","rows_first":2000,"rows_last":500,"rows_between":2000,"halvings":0,"cell_chars":16384,"cell_head_chars":4096},"cells_cut":0,"cells_raw":0,"read":"whole","date_system":"1900"}

{"sheet":"Fedlap","index":0,"n_rows":14,"n_cols":1,"rows_kept":14,"cut":false,"hidden":false,"merged":[[12,0,12,3],[13,0,13,3],[14,0,14,3],[6,0,10,3],[21,0,21,1],[21,2,21,3],[25,1,25,2],[22,0,22,1],[26,1,26,2],[22,2,22,3],[27,1,27,2]]}
[]
[]
[]
[]
[]
[]
["ÁRAZOTT TÉTELES KÖLTSÉGVETÉS"]
[]
[]
[]
[]
[]
["Szegedi Tudományegyetem Állam- és Jogtudományi Kar"]
["6720 Szeged, Tisza L. krt. 54."]

{"sheet":"Összesítők","index":1,"n_rows":21,"n_cols":9,"rows_kept":21,"cut":false,"hidden":false,"merged":[[1,4,1,8],[2,4,2,8],[3,4,3,8],[4,4,4,8],[15,0,15,8],[10,1,10,5],[9,1,9,5],[11,1,11,5],[12,0,12,5],[7,0,7,8],[1,0,1,3],[2,0,2,3],[3,0,3,3],[4,0,4,3],[18,0,18,5],[19,0,19,5],[31,6,31,7],[20,6,20,8],[22,0,23,8],[24,0,25,8],[29,6,29,7],[30,6,30,7],[20,0,20,5]]}
[]
["Megrendelő neve:",null,null,null,"Szegedi Tudományegyetem"]
["Megrendelő címe:",null,null,null,"6720 Szeged, Dugonics tér 13. "]
["Munka megnevezése:",null,null,null,"SZTE ÁJTK "]
["Munkavégzés címe:",null,null,null,"6720 Szeged, Tisza L. krt. 54. "]
[]
[]
["M U N K A N E M   Ö S S Z E S Í T Ő "]
[]
["SSz","MUNKANEM",{"$nulls":4},"ANYAGÁR","DÍJ","ANYAG+DÍJ"]
["1.","FELVONÓ",{"$nulls":4},{"$f":"Felvonó!G5","v":0},{"$f":"Felvonó!H5","v":0},{"$f":"G11+H11","v":0}]
["2.","FELVONÓTORONY KIALAKÍTÁSA",{"$nulls":4},{"$f":"'Felvonótorony átalakítása'!G13","v":0},{"$f":"'Felvonótorony átalakítása'!H13","v":0},{"$f":"G12+H12","v":0}]
["ÖSSZESEN: (nettó)",{"$nulls":5},{"$f":"SUM(G11:G12)","v":0},{"$f":"SUM(H11:H12)","v":0},{"$f":"SUM(G13:H13)","v":0}]
[]
[]
["K Ö L T S É G V E T É S  Ö S S Z E S Í T Ő"]
[]
[{"$nulls":6},"NETTÓ ÖSSZEG","27% ÁFA","BRUTTÓ ÖSSZEG"]
["A N Y A G K Ö L T S É G",{"$nulls":5},{"$f":"G13","v":0},{"$f":"G19*0.27","v":0},{"$f":"G19+H19","v":0}]
["M U N K A D Í J",{"$nulls":5},{"$f":"H13","v":0},{"$f":"G20*0.27","v":0},{"$f":"G20+H20","v":0}]
["B R U T T Ó  V É G Ö S S Z E G:",{"$nulls":5},{"$f":"I19+I20","v":0}]

{"sheet":"Felvonó","index":2,"n_rows":5,"n_cols":8,"rows_kept":5,"cut":false,"hidden":false,"merged":[]}
["Sorszám","Tétel szövege","Mennyiség","Egység","Anyag egységár","Díj egységre","Anyag összesen","Díj összesen"]
[1,"Meglévő felvonó bontása, bontott anyag elszállítása",1,"db     ",0,0,{"$f":"ROUND(C2*E2, 0)","v":0},{"$f":"ROUND(C2*F2, 0)","v":0}]
[2,"630 kg teherbírású 4 megállós személyfelvonó beépítése a SzAE-1403/2020. terv alapján.",1,"db     ",0,0,0,0]
[]
[null,"Munkanem összesen:",{"$nulls":4},{"$f":"ROUND(SUM(G2:G3),0)","v":0},{"$f":"ROUND(SUM(H2:H3),0)","v":0}]

{"sheet":"Felvonótorony átalakítása","index":3,"n_rows":13,"n_cols":8,"rows_kept":13,"cut":false,"hidden":false,"merged":[]}
["Sorszám","Tétel szövege","Mennyiség","Egység","Anyag egységár","Díj egységre","Anyag összesen","Díj összesen"]
[1,"Állványépítés 30 nap ",180,"m2",0,0,{"$f":"ROUND(C2*E2, 0)","v":0},{"$f":"ROUND(C2*F2, 0)","v":0}]
[2,"Üveg bontása",112,"m2",0,0,0,{"$f":"SUM(C3*F3)","v":0}]
[3,"Üveg tartószerkezet bontása 1 emeletig",560,"kg",0,0,0,0]
[4,"Felülettísztítása acélszerkezeten ",130,"m2",0,0,0,0]
[5,"Festés acélszerkezeten három rétegben",390,"m2",0,0,{"$f":"SUM(C6*E6)","v":0},0]
[6,"Belső lemezburkolat kialakítása az 1 emeletig ",904,"kg",0,0,0,0]
[7,"Salakgyapot hangszigetelés beépítése az 1 emeletig",58,"m2",0,0,0,0]
[8,"Üvegezés az 1 emelet feletti részen hőszigetelt és ragasztott biztonsági üveggel opál fóliával (5+16+5+0,76+5) rétegrenddel.",39,"m2",0,0,0,0]
[9,"Szegélyezés",121,"m2",0,0,0,0]
[10,"Rozsdamentes üvegfogó ",560,"kg",0,0,0,0]
[]
[null,"Munkanem összesen:",{"$nulls":4},{"$f":"ROUND(SUM(G2:G12),0)","v":0},{"$f":"ROUND(SUM(H2:H12),0)","v":0}]